[Event "*** Titled Tuesday Blitz"]
[Site "Chess.com"]
[Date "2021.02.09"]
[Round "7"]
[White "hypert"]
[Black "Kobalia"]
[Result "0-1"]
[WhiteElo "2514"]
[BlackElo "2690"]
[TimeControl "180+1"]
[EndTime "11:18:33 PST"]
[Termination "Kobalia won by resignation"]

1. e4 {[%clk 0:03:00.9]} 1... c6 {[%clk 0:02:59.1]} 2. Nc3 {[%clk 0:03:01.8]}
2... d5 {[%clk 0:02:59.3]} 3. Nf3 {[%clk 0:03:02]} 3... Bg4 {[%clk 0:02:54.2]}
4. h3 {[%clk 0:03:01.9]} 4... Bxf3 {[%clk 0:02:54.5]} 5. Qxf3 {[%clk 0:03:02.6]}
5... e6 {[%clk 0:02:55]} 6. d4 {[%clk 0:03:01.9]} 6... Nf6 {[%clk 0:02:54.8]} 7.
e5 {[%clk 0:02:57]} 7... Nfd7 {[%clk 0:02:54.2]} 8. Bf4 {[%clk 0:02:56.8]} 8...
c5 {[%clk 0:02:54.2]} 9. dxc5 {[%clk 0:02:55.5]} 9... Bxc5 {[%clk 0:02:52.6]}
10. Bd3 {[%clk 0:02:55.1]} 10... Nc6 {[%clk 0:02:52.2]} 11. Qg3 {[%clk
0:02:54.4]} 11... g6 {[%clk 0:02:52.2]} 12. O-O-O {[%clk 0:02:50.5]} 12... Bd4
{[%clk 0:02:36.7]} 13. Nb5 {[%clk 0:02:18.8]} 13... Bxe5 {[%clk 0:02:34.9]} 14.
Nd6+ {[%clk 0:02:14.5]} 14... Bxd6 {[%clk 0:02:31.3]} 15. Bxd6 {[%clk
0:02:15.4]} 15... Qf6 {[%clk 0:02:29.8]} 16. h4 {[%clk 0:02:07.2]} 16... e5
{[%clk 0:02:18.8]} 17. Ba3 {[%clk 0:02:06]} 17... O-O-O {[%clk 0:02:18.4]} 18.
h5 {[%clk 0:01:55.4]} 18... Rhe8 {[%clk 0:02:17.5]} 19. hxg6 {[%clk 0:01:54.6]}
19... hxg6 {[%clk 0:02:16.5]} 20. Bb5 {[%clk 0:01:47.4]} 20... a6 {[%clk
0:02:11.4]} 21. Be2 {[%clk 0:01:42.6]} 21... Nb6 {[%clk 0:02:08.3]} 22. Bc5
{[%clk 0:01:33.3]} 22... Nc4 {[%clk 0:02:04.4]} 23. Qc3 {[%clk 0:01:13.7]} 23...
Kb8 {[%clk 0:01:48.6]} 24. Kb1 {[%clk 0:01:11]} 24... Nd6 {[%clk 0:01:44.1]} 25.
Bb6 {[%clk 0:01:09.4]} 25... Ne4 {[%clk 0:01:38.3]} 26. Qb3 {[%clk 0:01:04.4]}
26... Nd4 {[%clk 0:01:31.9]} 27. Bxd4 {[%clk 0:01:02.9]} 27... exd4 {[%clk
0:01:31.8]} 28. Rhf1 {[%clk 0:00:55.7]} 28... Nc5 {[%clk 0:01:23.7]} 29. Qf3
{[%clk 0:00:54.1]} 29... Qe5 {[%clk 0:01:16.8]} 30. Bd3 {[%clk 0:00:53.6]} 30...
f5 {[%clk 0:01:14.6]} 31. g3 {[%clk 0:00:53]} 31... Ne4 {[%clk 0:01:12.1]} 32.
a3 {[%clk 0:00:51.6]} 32... Re6 {[%clk 0:01:11.2]} 33. Rh1 {[%clk 0:00:50.6]}
33... Rb6 {[%clk 0:01:10.5]} 34. Ka1 {[%clk 0:00:44.6]} 34... Qc7 {[%clk
0:01:07.4]} 35. g4 {[%clk 0:00:40.7]} 35... fxg4 {[%clk 0:01:05]} 36. Qg2 {[%clk
0:00:38.2]} 36... Nc3 {[%clk 0:00:58.2]} 37. Qxg4 {[%clk 0:00:33.5]} 37... Nxd1
{[%clk 0:00:55.7]} 38. Rxd1 {[%clk 0:00:31.9]} 38... Qe5 {[%clk 0:00:54]} 39. f4
{[%clk 0:00:29.5]} 39... Qf6 {[%clk 0:00:53.6]} 40. Rg1 {[%clk 0:00:27.1]} 40...
Rf8 {[%clk 0:00:52.4]} 41. Bxg6 {[%clk 0:00:21.6]} 41... d3 {[%clk 0:00:47.9]}
42. c3 {[%clk 0:00:21.2]} 42... d2 {[%clk 0:00:42]} 43. Qd1 {[%clk 0:00:19.9]}
43... Qxf4 {[%clk 0:00:40]} 44. Bc2 {[%clk 0:00:19]} 44... Re8 {[%clk
0:00:37.3]} 45. Bd3 {[%clk 0:00:18.1]} 45... Rbe6 {[%clk 0:00:36.5]} 46. Ka2
{[%clk 0:00:14.1]} 46... Re1 {[%clk 0:00:36]} 47. Rf1 {[%clk 0:00:11.3]} 47...
Qxf1 {[%clk 0:00:31.7]} 0-1

[Event "*** Titled Tuesday Blitz"]
[Site "Chess.com"]
[Date "2021.02.09"]
[Round "7"]
[White "The_Machine04"]
[Black "Darius321"]
[Result "1-0"]
[WhiteElo "2463"]
[BlackElo "2274"]
[TimeControl "180+1"]
[EndTime "11:18:33 PST"]
[Termination "The_Machine04 won by checkmate"]

1. d4 {[%clk 0:03:00.9]} 1... d5 {[%clk 0:02:59.7]} 2. Bf4 {[%clk 0:02:57.8]}
2... e6 {[%clk 0:02:59.2]} 3. e3 {[%clk 0:02:57.3]} 3... c5 {[%clk 0:02:59.4]}
4. c3 {[%clk 0:02:53.4]} 4... Bd6 {[%clk 0:02:58.1]} 5. Bg3 {[%clk 0:02:52.5]}
5... Nf6 {[%clk 0:02:57.1]} 6. Nd2 {[%clk 0:02:51.4]} 6... Nc6 {[%clk
0:02:55.1]} 7. Ngf3 {[%clk 0:02:41]} 7... h6 {[%clk 0:02:55.1]} 8. Bd3 {[%clk
0:02:40.1]} 8... O-O {[%clk 0:02:51.4]} 9. Ne5 {[%clk 0:02:32.9]} 9... Qc7
{[%clk 0:02:43.6]} 10. f4 {[%clk 0:02:32.3]} 10... b6 {[%clk 0:02:30.1]} 11. Qf3
{[%clk 0:02:31.1]} 11... Bb7 {[%clk 0:02:28.9]} 12. Bh4 {[%clk 0:02:27.7]} 12...
Ne4 {[%clk 0:02:21]} 13. Nxe4 {[%clk 0:02:22.4]} 13... dxe4 {[%clk 0:02:17.2]}
14. Bxe4 {[%clk 0:02:21]} 14... Bxe5 {[%clk 0:01:27.8]} 15. fxe5 {[%clk
0:02:19.9]} 15... cxd4 {[%clk 0:01:20.4]} 16. cxd4 {[%clk 0:01:59.6]} 16... Nb4
{[%clk 0:00:41]} 17. Bxb7 {[%clk 0:01:34.7]} 17... Nc2+ {[%clk 0:00:29.8]} 18.
Kd2 {[%clk 0:01:21.6]} 18... Nxa1 {[%clk 0:00:25.1]} 19. Rxa1 {[%clk 0:01:14.8]}
19... Rab8 {[%clk 0:00:24.3]} 20. Be4 {[%clk 0:01:08.7]} 20... Rbc8 {[%clk
0:00:23.2]} 21. Bd3 {[%clk 0:00:52.6]} 21... b5 {[%clk 0:00:22.9]} 22. Qe4
{[%clk 0:00:45.1]} 22... g6 {[%clk 0:00:23.2]} 23. Bf6 {[%clk 0:00:42.1]} 23...
Kh7 {[%clk 0:00:22.1]} 24. h4 {[%clk 0:00:37.5]} 24... Qa5+ {[%clk 0:00:21.9]}
25. Ke2 {[%clk 0:00:36.9]} 25... Qb4 {[%clk 0:00:21.6]} 26. Rb1 {[%clk 0:00:28]}
26... h5 {[%clk 0:00:13.9]} 27. Qf3 {[%clk 0:00:26.4]} 27... Kh6 {[%clk
0:00:13.9]} 28. Bg5+ {[%clk 0:00:23.3]} 28... Kg7 {[%clk 0:00:13.9]} 29. Qf6+
{[%clk 0:00:22.9]} 29... Kh7 {[%clk 0:00:14.1]} 30. Qf3 {[%clk 0:00:18.7]} 30...
a5 {[%clk 0:00:12.6]} 31. Qxh5+ {[%clk 0:00:17.5]} 31... Kg8 {[%clk 0:00:12.2]}
32. Qh6 {[%clk 0:00:14.8]} 32... f5 {[%clk 0:00:11.3]} 33. exf6 {[%clk
0:00:12.2]} 33... Kf7 {[%clk 0:00:08.7]} 34. Qxg6# {[%clk 0:00:10.8]} 1-0

[Event "*** Titled Tuesday Blitz"]
[Site "Chess.com"]
[Date "2021.02.09"]
[Round "7"]
[White "DanielDardha2005"]
[Black "AttilaTurzo"]
[Result "1-0"]
[WhiteElo "2709"]
[BlackElo "2528"]
[TimeControl "180+1"]
[EndTime "11:18:36 PST"]
[Termination "DanielDardha2005 won by resignation"]

1. d4 {[%clk 0:03:00.9]} 1... d5 {[%clk 0:02:59.8]} 2. c4 {[%clk 0:03:00.2]}
2... c6 {[%clk 0:03:00.7]} 3. Nf3 {[%clk 0:02:59.8]} 3... Nf6 {[%clk 0:03:01]}
4. Nc3 {[%clk 0:03:00.4]} 4... a6 {[%clk 0:03:01.3]} 5. e3 {[%clk 0:02:58.1]}
5... Bf5 {[%clk 0:03:00.6]} 6. b3 {[%clk 0:02:53.9]} 6... e6 {[%clk 0:02:59.9]}
7. Bb2 {[%clk 0:02:53.4]} 7... Nbd7 {[%clk 0:02:57.2]} 8. Bd3 {[%clk 0:02:50.3]}
8... Bg6 {[%clk 0:02:54.2]} 9. O-O {[%clk 0:02:49.5]} 9... Bd6 {[%clk
0:02:50.3]} 10. Qc2 {[%clk 0:02:47.8]} 10... b5 {[%clk 0:02:37.9]} 11. cxd5
{[%clk 0:02:39.3]} 11... cxd5 {[%clk 0:02:37]} 12. a4 {[%clk 0:02:37.2]} 12...
b4 {[%clk 0:02:31.6]} 13. Ne2 {[%clk 0:02:35.4]} 13... Rc8 {[%clk 0:02:24.1]}
14. Qb1 {[%clk 0:02:31.7]} 14... O-O {[%clk 0:02:21.3]} 15. Bxg6 {[%clk
0:02:28.1]} 15... hxg6 {[%clk 0:02:20.9]} 16. a5 {[%clk 0:02:28.5]} 16... Qc7
{[%clk 0:02:05.8]} 17. Qd3 {[%clk 0:02:26]} 17... Qc2 {[%clk 0:02:05.6]} 18.
Qxa6 {[%clk 0:01:46.2]} 18... Rc6 {[%clk 0:01:08.5]} 19. Qb5 {[%clk 0:01:45.5]}
19... Rb8 {[%clk 0:00:57.5]} 20. Qa4 {[%clk 0:01:45.3]} 20... Ra6 {[%clk
0:00:51.9]} 21. Ne5 {[%clk 0:00:42.4]} 21... Nf8 {[%clk 0:00:17.7]} 22. Rfe1
{[%clk 0:00:38]} 22... Qxb2 {[%clk 0:00:17.3]} 23. Ra2 {[%clk 0:00:37.8]} 23...
Qxa2 {[%clk 0:00:09.6]} 24. Qxa2 {[%clk 0:00:38.7]} 24... Rba8 {[%clk
0:00:09.3]} 25. Ra1 {[%clk 0:00:36.9]} 25... Bc7 {[%clk 0:00:08.4]} 26. Qd2
{[%clk 0:00:33.2]} 26... Rxa5 {[%clk 0:00:07.5]} 27. Rxa5 {[%clk 0:00:33]} 27...
Rxa5 {[%clk 0:00:06.7]} 28. f3 {[%clk 0:00:32.6]} 28... Bd6 {[%clk 0:00:07]} 29.
g4 {[%clk 0:00:29.7]} 29... Ra1+ {[%clk 0:00:05.9]} 30. Kg2 {[%clk 0:00:29.5]}
30... Ra3 {[%clk 0:00:05.9]} 31. Nc1 {[%clk 0:00:29.5]} 31... N6d7 {[%clk
0:00:05.7]} 32. Ned3 {[%clk 0:00:26.7]} 32... e5 {[%clk 0:00:04.2]} 33. dxe5
{[%clk 0:00:26.1]} 33... Nxe5 {[%clk 0:00:05.1]} 34. Nxe5 {[%clk 0:00:24.9]}
34... Bxe5 {[%clk 0:00:06]} 35. Qxb4 {[%clk 0:00:24.8]} 35... Ra1 {[%clk
0:00:05.5]} 36. Qc5 {[%clk 0:00:24.6]} 36... Bb2 {[%clk 0:00:04.4]} 37. Nd3
{[%clk 0:00:24]} 37... Bf6 {[%clk 0:00:05]} 38. Qxd5 {[%clk 0:00:24.1]} 38...
Ra2+ {[%clk 0:00:05.5]} 39. Kg3 {[%clk 0:00:24.5]} 39... Ne6 {[%clk 0:00:06.4]}
40. b4 {[%clk 0:00:21.1]} 40... Ng5 {[%clk 0:00:03.5]} 41. Qxa2 {[%clk
0:00:20.8]} 1-0

[Event "*** Titled Tuesday Blitz"]
[Site "Chess.com"]
[Date "2021.02.09"]
[Round "7"]
[White "Euwe1234"]
[Black "KaterinaMiroshnik"]
[Result "0-1"]
[WhiteElo "2466"]
[BlackElo "2619"]
[TimeControl "180+1"]
[EndTime "11:18:38 PST"]
[Termination "KaterinaMiroshnik won by resignation"]

1. d4 {[%clk 0:03:00.9]} 1... e6 {[%clk 0:02:59.6]} 2. c4 {[%clk 0:02:58.6]}
2... Nf6 {[%clk 0:03:00.5]} 3. Nf3 {[%clk 0:02:57.5]} 3... d5 {[%clk 0:03:01.4]}
4. Nc3 {[%clk 0:02:57.3]} 4... Bb4 {[%clk 0:03:00.3]} 5. cxd5 {[%clk 0:02:56.4]}
5... exd5 {[%clk 0:02:59.5]} 6. Bg5 {[%clk 0:02:55.3]} 6... O-O {[%clk
0:02:58.7]} 7. e3 {[%clk 0:02:55.3]} 7... Be7 {[%clk 0:02:58.6]} 8. Bd3 {[%clk
0:02:55.2]} 8... b6 {[%clk 0:02:58.5]} 9. O-O {[%clk 0:02:54.5]} 9... Nbd7
{[%clk 0:02:58.5]} 10. Qc2 {[%clk 0:02:53.4]} 10... c5 {[%clk 0:02:57.2]} 11.
Ne5 {[%clk 0:02:48.2]} 11... h6 {[%clk 0:02:53.2]} 12. Bf4 {[%clk 0:02:42.5]}
12... Bb7 {[%clk 0:02:51.6]} 13. Rad1 {[%clk 0:02:36.7]} 13... c4 {[%clk
0:02:47.1]} 14. Bf5 {[%clk 0:02:33.5]} 14... a6 {[%clk 0:02:47]} 15. Nxd7 {[%clk
0:02:29.1]} 15... Nxd7 {[%clk 0:02:46.1]} 16. e4 {[%clk 0:02:30]} 16... b5
{[%clk 0:02:40.4]} 17. Nxd5 {[%clk 0:02:28.8]} 17... Bxd5 {[%clk 0:02:38]} 18.
exd5 {[%clk 0:02:29.7]} 18... Nf6 {[%clk 0:02:38]} 19. Rfe1 {[%clk 0:02:25]}
19... Bd6 {[%clk 0:02:34.6]} 20. Be5 {[%clk 0:02:01.1]} 20... Rb8 {[%clk
0:02:18.2]} 21. Be4 {[%clk 0:01:56.7]} 21... Nxe4 {[%clk 0:02:09.9]} 22. Qxe4
{[%clk 0:01:55.4]} 22... Qd7 {[%clk 0:02:02]} 23. Qf4 {[%clk 0:01:50.5]} 23...
Rbd8 {[%clk 0:01:58]} 24. h3 {[%clk 0:01:32.3]} 24... f6 {[%clk 0:01:54.7]} 25.
Bxd6 {[%clk 0:01:30.5]} 25... Qxd6 {[%clk 0:01:55.1]} 26. Qxd6 {[%clk 0:01:29]}
26... Rxd6 {[%clk 0:01:56]} 27. Re6 {[%clk 0:01:29]} 27... Rfd8 {[%clk 0:01:54]}
28. Rde1 {[%clk 0:01:20.1]} 28... a5 {[%clk 0:01:51.8]} 29. Rxd6 {[%clk
0:01:02.3]} 29... Rxd6 {[%clk 0:01:49.2]} 30. Re8+ {[%clk 0:01:03.2]} 30... Kf7
{[%clk 0:01:44.9]} 31. Ra8 {[%clk 0:01:02.8]} 31... a4 {[%clk 0:01:44.6]} 32.
Ra7+ {[%clk 0:01:02.2]} 32... Kg6 {[%clk 0:01:40.6]} 33. Rb7 {[%clk 0:01:00.5]}
33... Rxd5 {[%clk 0:01:39.5]} 34. Kf1 {[%clk 0:01:00.2]} 34... Rxd4 {[%clk
0:01:36]} 35. Rxb5 {[%clk 0:00:59.4]} 35... Rd1+ {[%clk 0:01:35.7]} 36. Ke2
{[%clk 0:00:59]} 36... Ra1 {[%clk 0:01:35.5]} 37. a3 {[%clk 0:00:56.1]} 37... c3
{[%clk 0:01:32]} 38. bxc3 {[%clk 0:00:54.9]} 38... Ra2+ {[%clk 0:01:31.8]} 39.
Kd3 {[%clk 0:00:50.4]} 39... Rxf2 {[%clk 0:01:31.1]} 40. Rb4 {[%clk 0:00:48.9]}
40... Rxg2 {[%clk 0:01:28.2]} 41. Rxa4 {[%clk 0:00:42.8]} 41... Rg3+ {[%clk
0:01:24.7]} 42. Kd2 {[%clk 0:00:42.5]} 42... Rxh3 {[%clk 0:01:21.5]} 43. Rg4+
{[%clk 0:00:42.4]} 43... Kf7 {[%clk 0:01:17.3]} 44. a4 {[%clk 0:00:40.8]} 44...
h5 {[%clk 0:01:15]} 45. Rb4 {[%clk 0:00:40.1]} 45... Rh1 {[%clk 0:01:12.5]} 46.
a5 {[%clk 0:00:38.2]} 46... Ra1 {[%clk 0:01:09.1]} 47. Rb5 {[%clk 0:00:38.2]}
47... g5 {[%clk 0:01:04.3]} 48. Ke3 {[%clk 0:00:35.5]} 48... h4 {[%clk
0:01:01.9]} 49. Kf3 {[%clk 0:00:35.4]} 49... Kg6 {[%clk 0:00:59.1]} 50. c4
{[%clk 0:00:35.2]} 50... h3 {[%clk 0:00:56.8]} 51. Kg3 {[%clk 0:00:34.3]} 51...
Ra3+ {[%clk 0:00:56]} 52. Kh2 {[%clk 0:00:34.1]} 52... g4 {[%clk 0:00:52.2]} 53.
Rb2 {[%clk 0:00:32]} 53... Kg5 {[%clk 0:00:49.2]} 54. c5 {[%clk 0:00:28.7]}
54... Kh4 {[%clk 0:00:45.8]} 55. Kg1 {[%clk 0:00:26.6]} 55... Ra1+ {[%clk
0:00:45.3]} 56. Kf2 {[%clk 0:00:24.9]} 56... h2 {[%clk 0:00:42.9]} 57. Rb8
{[%clk 0:00:24.1]} 57... g3+ {[%clk 0:00:42.8]} 58. Kf3 {[%clk 0:00:22.5]} 0-1

[Event "*** Titled Tuesday Blitz"]
[Site "Chess.com"]
[Date "2021.02.09"]
[Round "7"]
[White "GMBenjaminBok"]
[Black "LilRag"]
[Result "1-0"]
[WhiteElo "2997"]
[BlackElo "2607"]
[TimeControl "180+1"]
[EndTime "11:18:39 PST"]
[Termination "GMBenjaminBok won by resignation"]

1. d4 {[%clk 0:03:00.9]} 1... Nf6 {[%clk 0:02:53.9]} 2. c4 {[%clk 0:02:58.6]}
2... e6 {[%clk 0:02:49.5]} 3. Nc3 {[%clk 0:02:58.4]} 3... d5 {[%clk 0:02:48.2]}
4. cxd5 {[%clk 0:02:57.8]} 4... exd5 {[%clk 0:02:46.6]} 5. Bg5 {[%clk
0:02:57.8]} 5... Be7 {[%clk 0:02:44.3]} 6. e3 {[%clk 0:02:58.1]} 6... c6 {[%clk
0:02:44.3]} 7. Bd3 {[%clk 0:02:58.5]} 7... Nbd7 {[%clk 0:02:43.4]} 8. Nf3 {[%clk
0:02:54.2]} 8... O-O {[%clk 0:02:42.2]} 9. Qc2 {[%clk 0:02:53.7]} 9... h6 {[%clk
0:02:41.6]} 10. Bh4 {[%clk 0:02:45.7]} 10... Re8 {[%clk 0:02:40.5]} 11. O-O
{[%clk 0:02:37.7]} 11... Ne4 {[%clk 0:02:38.6]} 12. Bxe7 {[%clk 0:02:34]} 12...
Qxe7 {[%clk 0:02:37.5]} 13. Bxe4 {[%clk 0:02:25.6]} 13... dxe4 {[%clk
0:02:37.2]} 14. Nd2 {[%clk 0:02:26.5]} 14... Nf6 {[%clk 0:02:36.9]} 15. Rab1
{[%clk 0:02:24.9]} 15... Be6 {[%clk 0:02:26.8]} 16. Ndxe4 {[%clk 0:01:46.8]}
16... Bf5 {[%clk 0:01:19.8]} 17. Nxf6+ {[%clk 0:01:45.7]} 17... Qxf6 {[%clk
0:01:20.3]} 18. e4 {[%clk 0:01:46.3]} 18... Bg6 {[%clk 0:01:19]} 19. Rbd1 {[%clk
0:01:35.1]} 19... Rad8 {[%clk 0:01:16.2]} 20. Qd3 {[%clk 0:00:48]} 20... b5
{[%clk 0:01:06.4]} 21. f3 {[%clk 0:00:42.3]} 21... a5 {[%clk 0:00:56.3]} 22. Qe3
{[%clk 0:00:40.7]} 22... Qe7 {[%clk 0:00:48.5]} 23. Rd2 {[%clk 0:00:39]} 23...
Qb4 {[%clk 0:00:42.1]} 24. Rfd1 {[%clk 0:00:35.9]} 24... Re7 {[%clk 0:00:40.2]}
25. d5 {[%clk 0:00:30.8]} 25... c5 {[%clk 0:00:28.7]} 26. d6 {[%clk 0:00:21]}
26... Red7 {[%clk 0:00:28.7]} 27. e5 {[%clk 0:00:18.4]} 27... Qc4 {[%clk
0:00:26.9]} 28. b3 {[%clk 0:00:16.1]} 28... Qe6 {[%clk 0:00:22.8]} 29. Nxb5
{[%clk 0:00:13.3]} 29... c4 {[%clk 0:00:22.5]} 30. Nc7 {[%clk 0:00:08.2]} 30...
Qf5 {[%clk 0:00:22.1]} 31. bxc4 {[%clk 0:00:08.1]} 31... h5 {[%clk 0:00:22.2]}
32. c5 {[%clk 0:00:08]} 32... Rc8 {[%clk 0:00:18.7]} 33. c6 {[%clk 0:00:08.3]}
33... Rdd8 {[%clk 0:00:19.4]} 34. Nd5 {[%clk 0:00:08.4]} 34... Kh7 {[%clk
0:00:12]} 35. Ne7 {[%clk 0:00:08.5]} 35... Qe6 {[%clk 0:00:12.7]} 36. Nxc8
{[%clk 0:00:08.8]} 36... Rxc8 {[%clk 0:00:13.3]} 37. d7 {[%clk 0:00:09.3]} 37...
Rxc6 {[%clk 0:00:13.9]} 38. d8=Q {[%clk 0:00:09.4]} 38... Rc4 {[%clk 0:00:14.3]}
39. Qd6 {[%clk 0:00:08.4]} 39... Qe8 {[%clk 0:00:13.7]} 40. Qd5 {[%clk
0:00:08.4]} 40... Qa4 {[%clk 0:00:13.9]} 41. e6 {[%clk 0:00:08.3]} 41... fxe6
{[%clk 0:00:13.4]} 42. Qexe6 {[%clk 0:00:08.5]} 42... Rh4 {[%clk 0:00:12.7]} 43.
Qxg6+ {[%clk 0:00:07.7]} 43... Kxg6 {[%clk 0:00:12.6]} 44. Rd4 {[%clk
0:00:07.3]} 1-0

[Event "*** Titled Tuesday Blitz"]
[Site "Chess.com"]
[Date "2021.02.09"]
[Round "7"]
[White "HackingKid98"]
[Black "Colombiano07"]
[Result "1-0"]
[WhiteElo "2481"]
[BlackElo "2321"]
[TimeControl "180+1"]
[EndTime "11:18:39 PST"]
[Termination "HackingKid98 won by resignation"]

1. d4 {[%clk 0:03:00.9]} 1... d5 {[%clk 0:02:59.8]} 2. c4 {[%clk 0:02:57.1]}
2... c6 {[%clk 0:03:00.2]} 3. Nf3 {[%clk 0:02:55.8]} 3... Nf6 {[%clk 0:03:00.6]}
4. g3 {[%clk 0:02:56.1]} 4... Bf5 {[%clk 0:02:57.9]} 5. Nc3 {[%clk 0:02:56.1]}
5... e6 {[%clk 0:02:58.4]} 6. Nh4 {[%clk 0:02:56.1]} 6... Bg4 {[%clk 0:02:58.3]}
7. Qb3 {[%clk 0:02:49.5]} 7... Qb6 {[%clk 0:02:57.8]} 8. h3 {[%clk 0:02:48.5]}
8... Bh5 {[%clk 0:02:57.4]} 9. g4 {[%clk 0:02:48.7]} 9... Bg6 {[%clk 0:02:57.8]}
10. Nxg6 {[%clk 0:02:47.8]} 10... hxg6 {[%clk 0:02:58.7]} 11. Bg2 {[%clk
0:02:47.3]} 11... Nbd7 {[%clk 0:02:58.3]} 12. O-O {[%clk 0:02:44.7]} 12... Be7
{[%clk 0:02:55.8]} 13. c5 {[%clk 0:02:27]} 13... Qxb3 {[%clk 0:02:54.8]} 14.
axb3 {[%clk 0:02:27.9]} 14... a6 {[%clk 0:02:55.7]} 15. b4 {[%clk 0:02:27.4]}
15... Rc8 {[%clk 0:02:55.5]} 16. Bf4 {[%clk 0:02:03.7]} 16... Bd8 {[%clk
0:02:53.3]} 17. g5 {[%clk 0:01:58.2]} 17... Nh5 {[%clk 0:02:52.1]} 18. e3 {[%clk
0:01:37.4]} 18... f6 {[%clk 0:02:31.3]} 19. gxf6 {[%clk 0:01:35.8]} 19... gxf6
{[%clk 0:02:32.2]} 20. Bd6 {[%clk 0:01:24.9]} 20... Bc7 {[%clk 0:02:29.9]} 21.
e4 {[%clk 0:01:24.1]} 21... Bxd6 {[%clk 0:02:24.9]} 22. cxd6 {[%clk 0:01:25]}
22... Nf4 {[%clk 0:02:21.1]} 23. exd5 {[%clk 0:01:24.1]} 23... cxd5 {[%clk
0:02:07.6]} 24. Rfe1 {[%clk 0:01:23.7]} 24... Kf7 {[%clk 0:02:04.9]} 25. b5
{[%clk 0:01:18.1]} 25... Ra8 {[%clk 0:01:42.9]} 26. bxa6 {[%clk 0:01:03.8]}
26... bxa6 {[%clk 0:01:43.8]} 27. Bf1 {[%clk 0:01:03]} 27... Nxh3+ {[%clk
0:01:42.3]} 28. Bxh3 {[%clk 0:00:48.1]} 28... Rxh3 {[%clk 0:01:43.2]} 29. Nb5
{[%clk 0:00:48]} 29... Rb3 {[%clk 0:01:36.1]} 30. Nc7 {[%clk 0:00:46.7]} 30...
Rh8 {[%clk 0:01:26.1]} 31. Rxe6 {[%clk 0:00:44.5]} 31... Rxb2 {[%clk 0:01:10.8]}
32. Re7+ {[%clk 0:00:43.9]} 32... Kg8 {[%clk 0:00:52.6]} 33. Rxd7 {[%clk
0:00:42.8]} 33... Rh5 {[%clk 0:00:50.1]} 34. Rxa6 {[%clk 0:00:35.7]} 34... Rg5+
{[%clk 0:00:12.7]} 35. Kf1 {[%clk 0:00:33.8]} 35... Rb1+ {[%clk 0:00:10.2]} 36.
Ke2 {[%clk 0:00:33.8]} 36... Rb2+ {[%clk 0:00:10.7]} 37. Kd3 {[%clk 0:00:30.7]}
37... Rb8 {[%clk 0:00:10]} 38. Ra8 {[%clk 0:00:29.6]} 38... Rxa8 {[%clk
0:00:09.9]} 39. Nxa8 {[%clk 0:00:30.5]} 39... Rf5 {[%clk 0:00:10.6]} 40. Ke3
{[%clk 0:00:26.9]} 40... Kf8 {[%clk 0:00:10.6]} 41. Nc7 {[%clk 0:00:26.7]} 41...
Rh5 {[%clk 0:00:09.4]} 42. Ne6+ {[%clk 0:00:26.6]} 42... Kg8 {[%clk 0:00:08.7]}
43. Rg7+ {[%clk 0:00:24.4]} 43... Kh8 {[%clk 0:00:09.2]} 44. d7 {[%clk
0:00:25.3]} 44... Rh3+ {[%clk 0:00:08.8]} 45. f3 {[%clk 0:00:24.8]} 1-0

[Event "*** Titled Tuesday Blitz"]
[Site "Chess.com"]
[Date "2021.02.09"]
[Round "7"]
[White "VMikhalevski"]
[Black "zeitnot2006"]
[Result "1-0"]
[WhiteElo "2702"]
[BlackElo "2525"]
[TimeControl "180+1"]
[EndTime "11:18:40 PST"]
[Termination "VMikhalevski won on time"]

1. Nf3 {[%clk 0:03:00.9]} 1... Nf6 {[%clk 0:02:56.9]} 2. g3 {[%clk 0:03:01.4]}
2... g6 {[%clk 0:02:57.1]} 3. Bg2 {[%clk 0:03:02]} 3... Bg7 {[%clk 0:02:57.8]}
4. b3 {[%clk 0:03:01.8]} 4... O-O {[%clk 0:02:57.7]} 5. Bb2 {[%clk 0:03:00.9]}
5... c5 {[%clk 0:02:57.4]} 6. c4 {[%clk 0:02:59]} 6... d5 {[%clk 0:02:51]} 7.
cxd5 {[%clk 0:02:52.2]} 7... Qxd5 {[%clk 0:02:49.6]} 8. O-O {[%clk 0:02:49.5]}
8... Qd6 {[%clk 0:02:42.3]} 9. Na3 {[%clk 0:02:47.7]} 9... Nc6 {[%clk
0:02:35.6]} 10. Nc4 {[%clk 0:02:41.9]} 10... Qd8 {[%clk 0:02:32.3]} 11. Rc1
{[%clk 0:02:39.2]} 11... Be6 {[%clk 0:02:27.5]} 12. Nfe5 {[%clk 0:02:35.7]}
12... Nxe5 {[%clk 0:02:08.5]} 13. Nxe5 {[%clk 0:02:24]} 13... Qb6 {[%clk
0:01:45]} 14. Nc4 {[%clk 0:02:18.1]} 14... Qc7 {[%clk 0:01:39.2]} 15. Be5 {[%clk
0:02:16.8]} 15... Qd7 {[%clk 0:01:36.9]} 16. Qc2 {[%clk 0:02:12]} 16... Rac8
{[%clk 0:01:36.2]} 17. Qb2 {[%clk 0:02:10.9]} 17... b6 {[%clk 0:01:35]} 18. Rfd1
{[%clk 0:02:08.7]} 18... Rfd8 {[%clk 0:01:29.6]} 19. d3 {[%clk 0:02:04.5]} 19...
Bd5 {[%clk 0:01:23.1]} 20. e4 {[%clk 0:01:58.1]} 20... Bxc4 {[%clk 0:01:12.6]}
21. Rxc4 {[%clk 0:01:53.7]} 21... Ne8 {[%clk 0:01:07.1]} 22. a3 {[%clk
0:01:32.7]} 22... Bxe5 {[%clk 0:00:42]} 23. Qxe5 {[%clk 0:01:32.3]} 23... Nd6
{[%clk 0:00:42]} 24. Rcc1 {[%clk 0:01:22.7]} 24... Nb5 {[%clk 0:00:37.2]} 25. h4
{[%clk 0:01:19.4]} 25... Nd4 {[%clk 0:00:24.2]} 26. Kh2 {[%clk 0:01:19.3]} 26...
Nxb3 {[%clk 0:00:23]} 27. Rb1 {[%clk 0:01:16.5]} 27... Nd4 {[%clk 0:00:20.1]}
28. h5 {[%clk 0:01:16.6]} 28... Qd6 {[%clk 0:00:16.9]} 29. Qg5 {[%clk
0:01:14.5]} 29... Qf6 {[%clk 0:00:15.3]} 30. Qe3 {[%clk 0:01:06]} 30... e5
{[%clk 0:00:06.7]} 31. a4 {[%clk 0:00:58.7]} 31... Qd6 {[%clk 0:00:02.7]} 32. h6
{[%clk 0:00:56.6]} 32... f5 {[%clk 0:00:01.7]} 33. f4 {[%clk 0:00:55.7]} 33...
exf4 {[%clk 0:00:01.7]} 34. gxf4 {[%clk 0:00:55.4]} 34... fxe4 {[%clk
0:00:01.7]} 35. dxe4 {[%clk 0:00:55.4]} 35... Re8 {[%clk 0:00:02.5]} 36. Rf1
{[%clk 0:00:49.9]} 36... Qf8 {[%clk 0:00:03]} 37. e5 {[%clk 0:00:47.7]} 37...
Qxh6+ {[%clk 0:00:03.1]} 38. Kg1 {[%clk 0:00:46.6]} 38... Qf8 {[%clk 0:00:03.2]}
39. Bd5+ {[%clk 0:00:45.4]} 39... Kh8 {[%clk 0:00:03.4]} 40. Rb2 {[%clk
0:00:44.3]} 40... Rcd8 {[%clk 0:00:03.8]} 41. Be4 {[%clk 0:00:41.9]} 41... Nf5
{[%clk 0:00:03.9]} 42. Qh3 {[%clk 0:00:41.1]} 42... Rd4 {[%clk 0:00:03.7]} 43.
Rh2 {[%clk 0:00:38.9]} 43... Re7 {[%clk 0:00:04]} 44. Bc2 {[%clk 0:00:36.2]}
44... Qf7 {[%clk 0:00:02.3]} 45. Rff2 {[%clk 0:00:30.3]} 45... Qc4 {[%clk
0:00:01.6]} 46. Bxf5 {[%clk 0:00:27.2]} 46... gxf5 {[%clk 0:00:02.5]} 47. Rhg2
{[%clk 0:00:25.6]} 1-0